fUST/lending_fUST_20260608
["ID","MTS","AMOUNT","RATE_DAILY","PERIOD"]
[424410503,1780849850000,-500.0,0.00019726,2]
[424410502,1780849850000,-500.0,0.00019726,2]
[424410513,1780849850000,-265.00805502,0.00019726,2]
[424410499,1780849850000,-500.0,0.00019726,2]
[424410469,1780849850000,-500.0,0.00019726,2]
[424410501,1780849850000,-500.0,0.00019726,2]
[424410470,1780849850000,-1139.97,0.00019726,2]
[424410471,1780849850000,-3730.47,0.00019726,2]
[424410473,1780849850000,-500.0,0.00019726,2]
[424410475,1780849850000,-500.0,0.00019726,2]
[424410479,1780849850000,-2939.55,0.00019726,2]
[424410481,1780849850000,-779.15,0.00019726,2]
[424410482,1780849850000,-863.7,0.00019726,2]
[424410474,1780849850000,-6397.84,0.00019726,2]
[424410477,1780849850000,-1964.76,0.00019726,2]
[424410476,1780849850000,-686.44,0.00019726,2]
[424410480,1780849850000,-500.0,0.00019726,2]
[424410478,1780849850000,-1123.77,0.00019726,2]
[424410483,1780849850000,-500.0,0.00019726,2]
[424410472,1780849850000,-837.4,0.00019726,2]
[424410485,1780849850000,-500.0,0.00019726,2]
[424410484,1780849850000,-1691.59,0.00019726,2]
[424410497,1780849850000,-500.0,0.00019726,2]
[424410496,1780849850000,-500.0,0.00019726,2]
[424410493,1780849850000,-500.0,0.00019726,2]
[424410491,1780849850000,-500.0,0.00019726,2]
[424410495,1780849850000,-500.0,0.00019726,2]
[424410494,1780849850000,-500.0,0.00019726,2]
[424410498,1780849850000,-500.0,0.00019726,2]
[424410490,1780849850000,-5181.99,0.00019726,2]
[424410487,1780849850000,-306.19227092,0.00019726,2]
[424410489,1780849850000,-1395.81,0.00019726,2]
[424410488,1780849850000,-500.0,0.00019726,2]
[424410486,1780849850000,-14346.31,0.00019726,2]
[424410492,1780849850000,-1893.21,0.00019726,2]
[424410550,1780849851000,-1421.31,0.00019726,2]
[424410549,1780849851000,-500.0,0.00019726,2]
[424410551,1780849851000,-647.22,0.00019726,2]
[424410552,1780849851000,-500.0,0.00019726,2]
[424410553,1780849851000,-500.0,0.00019726,2]
[424410556,1780849851000,-500.0,0.00019726,2]
[424410557,1780849851000,-3371.02,0.00019726,2]
[424410559,1780849851000,-168.35730556,0.00019757,60]
[424410560,1780849851000,-319.823466,0.00019824,2]
[424410558,1780849851000,-490.29,0.00019726,2]
[424410545,1780849851000,-500.0,0.00019726,2]
[424410554,1780849851000,-12268.77,0.00019726,2]
[424410547,1780849851000,-1032.97,0.00019726,2]
[424410540,1780849851000,-500.0,0.00019726,2]
[424410548,1780849851000,-554.47,0.00019726,2]
[424410546,1780849851000,-670.25,0.00019726,2]
[424410543,1780849851000,-232.1150794,0.00019726,2]
[424410542,1780849851000,-500.0,0.00019726,2]
[424410539,1780849851000,-500.0,0.00019726,2]
[424410541,1780849851000,-583.57,0.00019726,2]
[424410537,1780849851000,-3081.55,0.00019726,2]
[424410538,1780849851000,-557.01,0.00019726,2]
[424410534,1780849851000,-500.0,0.00019726,2]
[424410535,1780849851000,-554.53,0.00019726,2]
[424410536,1780849851000,-9057.27,0.00019726,2]
[424410533,1780849851000,-1024.64,0.00019726,2]
[424410561,1780849851000,-230.42325555,0.00019837,2]
[424410544,1780849851000,-500.0,0.00019726,2]
[424410564,1780849851000,-166.5674121,0.00019837,2]
[424410555,1780849851000,-1671.2,0.00019726,2]
[424410563,1780849851000,-216.51697671,0.00019837,2]
[424410591,1780849851000,-500.0,0.00019726,2]
[424410592,1780849851000,-5594.28265674,0.0002,2]
[424410590,1780849851000,-500.0,0.00019452,2]
[424410589,1780849851000,-33.88289626,0.00019178,2]
[424410588,1780849851000,-466.11710374,0.00019178,2]
[424410587,1780849851000,-648329.65842797,0.0002,2]
[424410585,1780849851000,-216.96428918,0.00019926,2]
[424410586,1780849851000,-104376.43937254,0.0002,2]
[424410584,1780849851000,-192.19809676,0.00019926,2]
[424410583,1780849851000,-470.0,0.000199,5]
[424410581,1780849851000,-332.12465894,0.00019877,2]
[424410579,1780849851000,-181.69058559,0.00019862,2]
[424410580,1780849851000,-322.30405626,0.00019877,2]
[424410578,1780849851000,-187.41788081,0.00019862,2]
[424410582,1780849851000,-280.09190204,0.00019877,2]
[424410576,1780849851000,-167.95419015,0.00019862,2]
[424410566,1780849851000,-498.22382222,0.00019862,2]
[424410577,1780849851000,-216.10052834,0.00019862,2]
[424410567,1780849851000,-262.11845852,0.00019862,2]
[424410570,1780849851000,-495.71878342,0.00019862,2]
[424410562,1780849851000,-239.84061519,0.00019837,2]
[424410569,1780849851000,-196.4732291,0.00019862,2]
[424410565,1780849851000,-230.30482751,0.00019837,2]
[424410573,1780849851000,-182.78536823,0.00019862,2]
[424410572,1780849851000,-294.16687457,0.00019862,2]
[424410574,1780849851000,-212.98875223,0.00019862,2]
[424410571,1780849851000,-482.78163935,0.00019862,2]
[424410575,1780849851000,-246.29611989,0.00019862,2]
[424410568,1780849851000,-587.24160212,0.00019862,2]
[424410594,1780849950000,-152.0,0.00016619,7]
[424410608,1780850137000,-5000.0,0.00016358,2]
[424410620,1780850829000,-676.01496133,0.00015556,2]
[424410619,1780850829000,-1843.32625056,0.000154,2]
[424410623,1780850851000,-337.42905155,0.00015556,2]
[424410624,1780850852000,-1897.22616349,0.00015556,2]
[424410661,1780851031000,-156.0,0.00016114,2]
[424410662,1780851031000,-179.897805,0.00016214,2]
[424410672,1780851031000,-500.0,0.00016689,2]
[424410673,1780851031000,-179.17139956,0.00016689,2]
[424410668,1780851031000,-472.02266929,0.00016689,2]
[424410665,1780851031000,-500.0,0.00016509,2]
[424410671,1780851031000,-500.0,0.00016689,2]
[424410664,1780851031000,-2062.17644999,0.00016346,2]
[424410666,1780851031000,-152.0,0.00016619,7]
[424410667,1780851031000,-500.0,0.00016689,2]
[424410669,1780851031000,-27.97733071,0.00016689,2]
[424410670,1780851031000,-500.0,0.00016689,2]
[424410663,1780851031000,-2937.82355001,0.00016346,2]
[424410734,1780851038000,-500.0,0.00019178,2]
[424410737,1780851038000,-772.58,0.00019178,2]
[424410736,1780851038000,-1750.9,0.00019178,2]
[424410735,1780851038000,-500.0,0.00019178,2]
[424410739,1780851038000,-1297.95,0.00019178,2]
[424410730,1780851038000,-500.0,0.00019178,2]
[424410728,1780851038000,-209.10338945,0.00019067,2]
[424410727,1780851038000,-387.16,0.00018904,2]
[424410726,1780851038000,-546.39068,0.00018714,2]
[424410721,1780851038000,-399.0,0.000183,2]
[424410729,1780851038000,-151.0,0.00019166,2]
[424410732,1780851038000,-500.0,0.00019178,2]
[424410733,1780851038000,-500.0,0.00019178,2]
[424410731,1780851038000,-500.0,0.00019178,2]
[424410741,1780851038000,-1930.51,0.00019178,2]
[424410751,1780851038000,-500.0,0.00019178,2]
[424410740,1780851038000,-611.54,0.00019178,2]
[424410742,1780851038000,-671.05,0.00019178,2]
[424410746,1780851038000,-500.0,0.00019178,2]
[424410744,1780851038000,-500.0,0.00019178,2]
[424410747,1780851038000,-500.0,0.00019178,2]
[424410745,1780851038000,-500.0,0.00019178,2]
[424410748,1780851038000,-500.0,0.00019178,2]
[424410743,1780851038000,-500.0,0.00019178,2]
[424410716,1780851038000,-845.80122573,0.00017632,2]
[424410738,1780851038000,-500.0,0.00019178,2]
[424410715,1780851038000,-845.80122573,0.00017632,2]
[424410698,1780851038000,-523.8,0.00016689,2]
[424410724,1780851038000,-170.0,0.00018608,2]
[424410750,1780851038000,-500.0,0.00019178,2]
[424410695,1780851038000,-320.82860044,0.00016689,2]
[424410696,1780851038000,-500.0,0.00016689,2]
[424410697,1780851038000,-500.0,0.00016689,2]
[424410699,1780851038000,-166.67,0.00016898,2]
[424410700,1780851038000,-845.80122573,0.00017632,2]
[424410701,1780851038000,-155.16875044,0.00017632,2]
[424410711,1780851038000,-845.80122573,0.00017632,2]
[424410703,1780851038000,-845.80122573,0.00017632,2]
[424410704,1780851038000,-845.80122573,0.00017632,2]
[424410707,1780851038000,-845.80122573,0.00017632,2]
[424410705,1780851038000,-845.80122573,0.00017632,2]
[424410723,1780851038000,-189.05177332,0.00018518,2]
[424410702,1780851038000,-845.80122573,0.00017632,2]
[424410706,1780851038000,-845.80122573,0.00017632,2]
[424410708,1780851038000,-845.80122573,0.00017632,2]
[424410709,1780851038000,-845.80122573,0.00017632,2]
[424410710,1780851038000,-845.80122573,0.00017632,2]
[424410714,1780851038000,-845.80122573,0.00017632,2]
[424410725,1780851038000,-387.16,0.0001863,2]
[424410718,1780851038000,-1837.0,0.00017634,2]
[424410720,1780851038000,-308.981,0.00017743,2]
[424410719,1780851038000,-186.0,0.00017634,2]
[424410713,1780851038000,-845.80122573,0.00017632,2]
[424410717,1780851038000,-845.80122573,0.00017632,2]
[424410722,1780851038000,-211.40154352,0.00018518,2]
[424410712,1780851038000,-845.80122573,0.00017632,2]
[424410752,1780851038000,-500.0,0.00019178,2]
[424410749,1780851038000,-500.0,0.00019178,2]
[424410754,1780851038000,-500.0,0.00019178,2]
[424410783,1780851038000,-540.64,0.00019178,2]
[424410785,1780851038000,-500.0,0.00019178,2]
[424410784,1780851038000,-500.0,0.00019178,2]
[424410786,1780851038000,-785.73,0.00019178,2]
[424410789,1780851038000,-869.28,0.00019178,2]
[424410790,1780851038000,-500.0,0.00019178,2]
[424410779,1780851038000,-580.96461057,0.00019178,2]
[424410791,1780851038000,-500.0,0.00019178,2]
[424410793,1780851038000,-500.0,0.00019178,2]
[424410804,1780851038000,-500.0,0.00019178,2]
[424410806,1780851038000,-991.06,0.00019178,2]
[424410810,1780851038000,-525.36,0.00019178,2]
[424410788,1780851038000,-500.0,0.00019178,2]
[424410808,1780851038000,-500.0,0.00019178,2]
[424410800,1780851038000,-500.0,0.00019178,2]
[424410798,1780851038000,-500.0,0.00019178,2]
[424410812,1780851038000,-1152.36,0.00019178,2]
[424410796,1780851038000,-217.5002063,0.00019178,2]
[424410815,1780851038000,-500.0,0.00019178,2]
[424410817,1780851038000,-770.72,0.00019178,2]
[424410820,1780851038000,-500.0,0.00019178,2]
[424410826,1780851038000,-500.0,0.00019178,2]
[424410828,1780851038000,-1719.17,0.00019178,2]
[424410822,1780851038000,-997.47,0.00019178,2]
[424410818,1780851038000,-2033.82,0.00019178,2]
[424410757,1780851038000,-670.91,0.00019178,2]
[424410802,1780851038000,-500.0,0.00019178,2]
[424410782,1780851038000,-500.0,0.00019178,2]
[424410795,1780851038000,-1520.02,0.00019178,2]
[424410780,1780851038000,-500.0,0.00019178,2]
[424410824,1780851038000,-500.0,0.00019178,2]
[424410787,1780851038000,-500.0,0.00019178,2]
[424410755,1780851038000,-500.0,0.00019178,2]
[424410756,1780851038000,-592.07,0.00019178,2]
[424410758,1780851038000,-628.54,0.00019178,2]
[424410759,1780851038000,-1055.59,0.00019178,2]
[424410760,1780851038000,-500.0,0.00019178,2]
[424410753,1780851038000,-500.0,0.00019178,2]
[424410761,1780851038000,-1000.0,0.00019178,2]
[424410763,1780851038000,-500.0,0.00019178,2]
[424410762,1780851038000,-500.0,0.00019178,2]
[424410766,1780851038000,-847.23,0.00019178,2]
[424410776,1780851038000,-500.0,0.00019178,2]
[424410764,1780851038000,-500.0,0.00019178,2]
[424410768,1780851038000,-500.0,0.00019178,2]
[424410778,1780851038000,-116.40538943,0.00019178,2]
[424410767,1780851038000,-500.0,0.00019178,2]
[424410772,1780851038000,-1946.26,0.00019178,2]
[424410775,1780851038000,-333.57301158,0.00019178,2]
[424410771,1780851038000,-781.46,0.00019178,2]
[424410773,1780851038000,-1052.37,0.00019178,2]
[424410774,1780851038000,-166.42698842,0.00019178,2]
[424410769,1780851038000,-1137.8,0.00019178,2]
[424410770,1780851038000,-500.0,0.00019178,2]
[424410765,1780851038000,-500.0,0.00019178,2]
[424410777,1780851038000,-500.0,0.00019178,2]
[424410781,1780851038000,-595.66,0.00019178,2]
[424410872,1780851039000,-1988.32,0.00019178,2]
[424410870,1780851039000,-500.0,0.00019178,2]
[424410868,1780851039000,-500.0,0.00019178,2]
[424410874,1780851039000,-500.0,0.00019178,2]
[424410865,1780851039000,-500.0,0.00019178,2]
[424410880,1780851039000,-1231.64,0.00019178,2]
[424410854,1780851039000,-535.78,0.00019178,2]
[424410882,1780851039000,-603.61,0.00019178,2]
[424410884,1780851039000,-500.0,0.00019178,2]
[424410886,1780851039000,-1159.13,0.00019178,2]
[424410890,1780851039000,-1931.9,0.00019178,2]
[424410888,1780851039000,-583.36,0.00019178,2]
[424410848,1780851039000,-2141.91,0.00019178,2]
[424410894,1780851039000,-500.0,0.00019178,2]
[424410876,1780851039000,-320.47198089,0.00019178,2]
[424410866,1780851039000,-500.0,0.00019178,2]
[424410837,1780851039000,-500.0,0.00019178,2]
[424410852,1780851039000,-500.0,0.00019178,2]
[424410892,1780851039000,-1843.34,0.00019178,2]
[424410829,1780851039000,-500.0,0.00019178,2]
[424410833,1780851039000,-600.64,0.00019178,2]
[424410831,1780851039000,-159.54998211,0.00019178,2]
[424410835,1780851039000,-500.0,0.00019178,2]
[424410839,1780851039000,-500.0,0.00019178,2]
[424410841,1780851039000,-224.17822995,0.00019178,2]
[424410843,1780851039000,-2549.69,0.00019178,2]
[424410855,1780851039000,-1221.34,0.00019178,2]
[424410857,1780851039000,-1022.03,0.00019178,2]
[424410861,1780851039000,-500.0,0.00019178,2]
[424410844,1780851039000,-592.83,0.00019178,2]
[424410859,1780851039000,-500.0,0.00019178,2]
[424410863,1780851039000,-621.89775448,0.00019178,2]
[424410846,1780851039000,-500.0,0.00019178,2]
[424410850,1780851039000,-3712.38,0.00019178,2]
[424410896,1780851039000,-500.0,0.00019178,2]
[424410878,1780851039000,-179.52801911,0.00019178,2]
[424410908,1780851039000,-500.0,0.00019178,2]
[424410956,1780851039000,-500.0,0.00019178,2]
[424410950,1780851039000,-2186.79,0.00019178,2]
[424410948,1780851039000,-566.32,0.00019178,2]
[424410944,1780851039000,-500.0,0.00019178,2]
[424410946,1780851039000,-500.0,0.00019178,2]
[424410961,1780851039000,-1210.67,0.00019178,2]
[424410963,1780851039000,-1003.24,0.00019178,2]
[424410965,1780851039000,-737.0,0.00019178,2]
[424410897,1780851039000,-500.0,0.00019178,2]
[424410971,1780851039000,-374.91982169,0.00019178,2]
[424410969,1780851039000,-871.67,0.00019178,2]
[424411004,1780851039000,-500.0,0.00019178,2]
[424411007,1780851039000,-324.07982168,0.00019178,2]
[424411001,1780851039000,-598.84,0.00019178,2]
[424410999,1780851039000,-125.08017831,0.00019178,2]
[424410942,1780851039000,-500.0,0.00019178,2]
[424410958,1780851039000,-500.0,0.00019178,2]
[424410967,1780851039000,-500.0,0.00019178,2]
[424410940,1780851039000,-586.47,0.00019178,2]
[424410954,1780851039000,-500.0,0.00019178,2]
[424410905,1780851039000,-823.2,0.00019178,2]
[424410914,1780851039000,-919.69,0.00019178,2]
[424410910,1780851039000,-500.0,0.00019178,2]
[424410912,1780851039000,-730.19,0.00019178,2]
[424410919,1780851039000,-500.0,0.00019178,2]
[424410929,1780851039000,-500.0,0.00019178,2]
[424410916,1780851039000,-1204.07,0.00019178,2]
[424410921,1780851039000,-500.0,0.00019178,2]
[424410926,1780851039000,-500.0,0.00019178,2]
[424410931,1780851039000,-591.36333719,0.00019178,2]
[424410933,1780851039000,-500.0,0.00019178,2]
[424410935,1780851039000,-500.0,0.00019178,2]
[424410938,1780851039000,-581.1,0.00019178,2]
[424410952,1780851039000,-500.0,0.00019178,2]
[424410924,1780851039000,-588.16,0.00019178,2]
[424411156,1780851040000,-500.0,0.00019178,2]
[424411129,1780851040000,-175.92017832,0.00019178,2]
[424411131,1780851040000,-368.30734802,0.00019178,2]
[424411138,1780851040000,-200.52265198,0.00019178,2]
[424411154,1780851040000,-500.0,0.00019178,2]
[424411152,1780851040000,-1229.18,0.00019178,2]
[424411159,1780851040000,-300.0,0.00019178,2]
[424411147,1780851040000,-740.36,0.00019178,2]
[424411143,1780851040000,-522.31,0.00019178,2]
[424411145,1780851040000,-593.53,0.00019178,2]
[424411149,1780851040000,-1284.53,0.00019178,2]
[424411161,1780851040000,-734.34,0.00019178,2]
[424411166,1780851040000,-500.0,0.00019178,2]
[424411164,1780851040000,-500.0,0.00019178,2]
[424411140,1780851040000,-520.92,0.00019178,2]
[424411168,1780851041000,-5299.17,0.00019178,2]
[424411170,1780851041000,-500.0,0.00019178,2]
[424411173,1780851041000,-500.0,0.00019178,2]
[424411179,1780851041000,-500.0,0.00019178,2]
[424411185,1780851041000,-500.0,0.00019178,2]
[424411183,1780851041000,-681.76,0.00019178,2]
[424411181,1780851041000,-732.72,0.00019178,2]
[424411177,1780851041000,-500.0,0.00019178,2]
[424411190,1780851041000,-500.0,0.00019178,2]
[424411187,1780851041000,-2572.11,0.00019178,2]
[424411192,1780851041000,-500.0,0.00019178,2]
[424411194,1780851041000,-1110.93181291,0.00019178,2]
[424411196,1780851041000,-1756.8,0.00019178,2]
[424411175,1780851041000,-2202.79,0.00019178,2]
[424411482,1780851043000,-2560.17488842,0.00018986,2]
[424411485,1780851043000,-371.47829495,0.00019178,2]
[424411471,1780851043000,-2439.82511158,0.00018986,2]
[424411698,1780851046000,-56002.99,0.00019178,2]
[424411703,1780851046000,-500.0,0.00019178,2]
[424411695,1780851046000,-1041.42,0.00019178,2]
[424411694,1780851046000,-1417.38,0.00019178,2]
[424411697,1780851046000,-3264.16,0.00019178,2]
[424411702,1780851046000,-749.77,0.00019178,2]
[424411699,1780851046000,-500.0,0.00019178,2]
[424411701,1780851046000,-4803.53,0.00019178,2]
[424411696,1780851046000,-500.0,0.00019178,2]
[424411706,1780851046000,-583.06,0.00019178,2]
[424411705,1780851046000,-500.0,0.00019178,2]
[424411700,1780851046000,-500.0,0.00019178,2]
[424411693,1780851046000,-755.74,0.00019178,2]
[424411708,1780851046000,-3659.05,0.00019178,2]
[424411709,1780851046000,-500.0,0.00019178,2]
[424411710,1780851046000,-500.0,0.00019178,2]
[424411711,1780851046000,-617.37,0.00019178,2]
[424411707,1780851046000,-500.0,0.00019178,2]
[424411715,1780851046000,-500.0,0.00019178,2]
[424411704,1780851046000,-5598.11,0.00019178,2]
[424411691,1780851046000,-500.0,0.00019178,2]
[424411684,1780851046000,-1243.64,0.00019178,2]
[424411690,1780851046000,-793.57,0.00019178,2]
[424411670,1780851046000,-1430.11989214,0.00019178,2]
[424411672,1780851046000,-997.62191763,0.00019178,2]
[424411671,1780851046000,-841.19,0.00019178,2]
[424411673,1780851046000,-2452.93688462,0.00019178,2]
[424411674,1780851046000,-9102.46119775,0.00019178,2]
[424411675,1780851046000,-500.0,0.00019178,2]
[424411678,1780851046000,-500.0,0.00019178,2]
[424411677,1780851046000,-500.0,0.00019178,2]
[424411679,1780851046000,-500.0,0.00019178,2]
[424411680,1780851046000,-7542.22664367,0.00019178,2]
[424411676,1780851046000,-566.43,0.00019178,2]
[424411681,1780851046000,-1122.22335633,0.00019178,2]
[424411712,1780851046000,-500.0,0.00019178,2]
[424411685,1780851046000,-500.0,0.00019178,2]
[424411688,1780851046000,-500.0,0.00019178,2]
[424411683,1780851046000,-500.0,0.00019178,2]
[424411682,1780851046000,-2436.13,0.00019178,2]
[424411692,1780851046000,-500.0,0.00019178,2]
[424411687,1780851046000,-983.3,0.00019178,2]
[424411689,1780851046000,-500.0,0.00019178,2]
[424411716,1780851046000,-500.0,0.00019178,2]
[424411686,1780851046000,-1337.1,0.00019178,2]
[424411718,1780851046000,-500.0,0.00019178,2]
[424411736,1780851046000,-1040.9,0.00019178,2]
[424411741,1780851046000,-500.0,0.00019178,2]
[424411738,1780851046000,-500.0,0.00019178,2]
[424411744,1780851046000,-71.57988093,0.00019178,2]
[424411743,1780851046000,-500.0,0.00019178,2]
[424411747,1780851046000,-563.13,0.00019178,2]
[424411756,1780851046000,-500.0,0.00019178,2]
[424411759,1780851046000,-244.07668306,0.00019178,2]
[424411746,1780851046000,-605.25,0.00019178,2]
[424411758,1780851046000,-500.0,0.00019178,2]
[424411750,1780851046000,-1480.15,0.00019178,2]
[424411748,1780851046000,-500.0,0.00019178,2]
[424411751,1780851046000,-229.28809795,0.00019178,2]
[424411749,1780851046000,-950.27,0.00019178,2]
[424411755,1780851046000,-378.09031054,0.00019178,2]
[424411753,1780851046000,-506.78874293,0.00019178,2]
[424411754,1780851046000,-121.90968946,0.00019178,2]
[424411752,1780851046000,-270.71190205,0.00019178,2]
[424411713,1780851046000,-500.0,0.00019178,2]
[424411740,1780851046000,-500.0,0.00019178,2]
[424411739,1780851046000,-500.0,0.00019178,2]
[424411757,1780851046000,-569.1295016,0.00019178,2]
[424411745,1780851046000,-724.02011907,0.00019178,2]
[424411720,1780851046000,-500.0,0.00019178,2]
[424411732,1780851046000,-117.44493922,0.00019178,2]
[424411730,1780851046000,-500.0,0.00019178,2]
[424411731,1780851046000,-1160.74,0.00019178,2]
[424411727,1780851046000,-5659.44,0.00019178,2]
[424411723,1780851046000,-686.73,0.00019178,2]
[424411729,1780851046000,-3025.57,0.00019178,2]
[424411725,1780851046000,-500.0,0.00019178,2]
[424411719,1780851046000,-500.0,0.00019178,2]
[424411722,1780851046000,-1000.0,0.00019178,2]
[424411714,1780851046000,-500.0,0.00019178,2]
[424411726,1780851046000,-500.0,0.00019178,2]
[424411724,1780851046000,-500.0,0.00019178,2]
[424411721,1780851046000,-3381.58,0.00019178,2]
[424411728,1780851046000,-500.0,0.00019178,2]
[424411733,1780851046000,-341.48938607,0.00019178,2]
[424411735,1780851046000,-1816.02,0.00019178,2]
[424411734,1780851046000,-500.0,0.00019178,2]
[424411737,1780851046000,-500.0,0.00019178,2]
[424411717,1780851046000,-1860.81,0.00019178,2]
[424411742,1780851046000,-1308.72,0.00019178,2]
[424411775,1780852032000,-723.21000881,0.00014598,2]
[424411776,1780852035000,-361.92442002,0.00014598,2]
[424411777,1780852047000,-749.55946425,0.00014598,2]
[424411779,1780852165000,-2310.35281055,0.00014598,2]
[424411786,1780852167000,-112.39455094,0.00014744,2]
[424411785,1780852167000,-637.36468942,0.00014744,2]
[424411784,1780852167000,-500.0,0.00014744,2]
[424411783,1780852167000,-500.0,0.00014744,2]
[424411782,1780852167000,-500.0,0.00014744,2]
[424411781,1780852167000,-500.0,0.00014744,2]
[424411780,1780852167000,-854.95329637,0.00014598,2]
[424411815,1780852232000,-893.90684644,0.00014451,2]
[424411932,1780852240000,-500.0,0.0001445,2]
[424411933,1780852240000,-500.0,0.0001445,2]
[424411937,1780852240000,-197.42136174,0.0001445,2]
[424411935,1780852240000,-211.27280969,0.0001445,2]
[424411936,1780852240000,-302.57863826,0.0001445,2]
[424411940,1780852240000,-500.0,0.0001445,2]
[424411939,1780852240000,-500.0,0.0001445,2]
[424411938,1780852240000,-500.0,0.0001445,2]
[424411942,1780852240000,-94.46136174,0.0001445,2]
[424411934,1780852240000,-288.72719031,0.0001445,2]
[424411941,1780852240000,-405.53863826,0.0001445,2]
[424411943,1780852240000,-207.30132972,0.0001445,2]
[424411947,1780852240000,-500.0,0.0001445,2]
[424411949,1780852240000,-500.0,0.0001445,2]
[424411951,1780852240000,-5000.0,0.00014597,2]
[424411948,1780852240000,-367.50566137,0.0001445,2]
[424411946,1780852240000,-500.0,0.0001445,2]
[424411944,1780852240000,-500.0,0.0001445,2]
[424411945,1780852240000,-500.0,0.0001445,2]
[424411950,1780852240000,-4106.09315356,0.00014451,2]
[424411970,1780852241000,-500.0,0.00016511,2]
[424411965,1780852241000,-778.13128767,0.00014743,2]
[424411979,1780852241000,-743.2003503,0.00018656,2]
[424411967,1780852241000,-778.13128767,0.00014743,2]
[424411968,1780852241000,-652.0,0.00015825,2]
[424411958,1780852241000,-778.13128767,0.00014743,2]
[424411978,1780852241000,-335.54,0.0001863,2]
[424411952,1780852241000,-778.13128767,0.00014743,2]
[424411957,1780852241000,-778.13128767,0.00014743,2]
[424411953,1780852241000,-184.8909067,0.00014743,2]
[424411977,1780852241000,-489.19043,0.00018612,2]
[424411954,1780852241000,-778.13128767,0.00014743,2]
[424411956,1780852241000,-778.13128767,0.00014743,2]
[424411955,1780852241000,-778.13128767,0.00014743,2]
[424411966,1780852241000,-778.13128767,0.00014743,2]
[424411974,1780852241000,-288.795,0.00017852,2]
[424411973,1780852241000,-186.0,0.00017634,2]
[424411981,1780852241000,-335.54,0.00018904,2]
[424411960,1780852241000,-778.13128767,0.00014743,2]
[424411982,1780852241000,-248.46634422,0.00019077,2]
[424411985,1780852241000,-227.64271894,0.00019078,2]
[424411986,1780852241000,-1328.89716264,0.00019178,2]
[424411983,1780852241000,-251.53365578,0.00019077,2]
[424411964,1780852241000,-778.13128767,0.00014743,2]
[424411961,1780852241000,-778.13128767,0.00014743,2]
[424411959,1780852241000,-778.13128767,0.00014743,2]
[424411984,1780852241000,-500.0,0.00019077,2]
[424411980,1780852241000,-151.0,0.00018867,2]
[424411971,1780852241000,-152.0,0.00016622,7]
[424411969,1780852241000,-652.0,0.00015825,2]
[424411975,1780852241000,-190.26138917,0.00018418,2]
[424411962,1780852241000,-778.13128767,0.00014743,2]
[424411963,1780852241000,-778.13128767,0.00014743,2]
[424411976,1780852241000,-176.44832177,0.00018418,2]
[424411972,1780852241000,-500.0,0.00017634,2]
[424411993,1780852243000,-1745.32854066,0.00019178,2]
[424411994,1780852243000,-203.77101934,0.00019178,2]
[424412012,1780852246000,-411.11085323,0.00019178,2]
[424412011,1780852246000,-544.79914677,0.00019178,2]
[424412015,1780852246000,-398.36184719,0.00019178,2]
[424412018,1780852246000,-568.13,0.00019178,2]
[424412020,1780852246000,-500.0,0.00019178,2]
[424412019,1780852246000,-500.0,0.00019178,2]
[424412024,1780852246000,-500.0,0.00019178,2]